[Event "Titled Tuesday Blitz February 21 Early 2023"]
[White "Bethke, Richard"]
[Black "Jenkins, Drake"]
[WhiteFideId "12959243"]
[BlackFideId "2022397"]
[WhiteElo "2382"]
[BlackElo "2130"]
[Result "1-0"]
[Round "09"]
[TimeControl "180+2"]
[Date "2023.02.21"]
[WhiteClock "0:01:36"]
[BlackClock "0:00:01"]

1. e4 {[%clk 0:03:00]}  c6 {[%clk 0:02:52]} 2. Nf3 {[%clk 0:03:00]}  d5 {[%clk 0:02:53]} 3. Nc3 {[%clk 0:03:01]}  dxe4 {[%clk 0:02:44]} 4. Nxe4 {[%clk 0:03:02]}  Nf6 {[%clk 0:02:44]} 5. Qe2 {[%clk 0:03:01]}  Nxe4 {[%clk 0:02:43]} 6. Qxe4 {[%clk 0:03:02]}  Qd5 {[%clk 0:02:43]} 7. Qh4 {[%clk 0:03:03]}  Bf5 {[%clk 0:02:34]} 8. Bc4 {[%clk 0:03:03]}  Qd6 {[%clk 0:02:25]} 9. d3 {[%clk 0:03:01]}  e6 {[%clk 0:02:13]} 10. Qg3 {[%clk 0:02:59]}  Qxg3 {[%clk 0:02:10]} 11. hxg3 {[%clk 0:03:00]}  h6 {[%clk 0:02:09]} 12. Bd2 {[%clk 0:02:58]}  Nd7 {[%clk 0:01:57]} 13. Bc3 {[%clk 0:02:57]}  a5 {[%clk 0:01:42]} 14. a4 {[%clk 0:02:52]}  Bb4 {[%clk 0:01:22]} 15. Bxb4 {[%clk 0:02:51]}  axb4 {[%clk 0:01:23]} 16. Kd2 {[%clk 0:02:48]}  Ke7 {[%clk 0:01:01]} 17. Rh4 {[%clk 0:02:45]}  Ra5 {[%clk 0:00:55]} 18. g4 {[%clk 0:02:41]}  Bg6 {[%clk 0:00:50]} 19. g5 {[%clk 0:02:18]}  h5 {[%clk 0:00:50]} 20. g4 {[%clk 0:02:12]}  b5 {[%clk 0:00:37]} 21. Bb3 {[%clk 0:02:06]}  Rh7 {[%clk 0:00:29]} 22. Nd4 {[%clk 0:02:00]}  Kd6 {[%clk 0:00:25]} 23. Rah1 {[%clk 0:01:57]}  bxa4 {[%clk 0:00:20]} 24. Bc4 {[%clk 0:01:55]}  c5 {[%clk 0:00:18]} 25. Nb5+ {[%clk 0:01:54]}  Kc6 {[%clk 0:00:18]} 26. gxh5 {[%clk 0:01:54]}  Bf5 {[%clk 0:00:17]} 27. f4 {[%clk 0:01:50]}  Rxb5 {[%clk 0:00:15]} 28. Bxb5+ {[%clk 0:01:50]}  Kxb5 {[%clk 0:00:16]} 29. h6 {[%clk 0:01:50]}  g6 {[%clk 0:00:14]} 30. c4+ {[%clk 0:01:47]}  bxc3+ {[%clk 0:00:10]} 31. bxc3 {[%clk 0:01:45]}  c4 {[%clk 0:00:10]} 32. Rb1+ {[%clk 0:01:44]}  Kc5 {[%clk 0:00:09]} 33. d4+ {[%clk 0:01:44]}  Kd5 {[%clk 0:00:08]} 34. Rb7 {[%clk 0:01:45]}  f6 {[%clk 0:00:06]} 35. Ke3 {[%clk 0:01:41]}  fxg5 {[%clk 0:00:05]} 36. fxg5 {[%clk 0:01:41]}  Nf8 {[%clk 0:00:04]} 37. Rb8 {[%clk 0:01:40]}  Nd7 {[%clk 0:00:02]} 38. Rb7 {[%clk 0:01:38]}  e5 {[%clk 0:00:02]} 39. dxe5 {[%clk 0:01:36]}  Kxe5 {[%clk 0:00:01]} 40. Rxc4 {[%clk 0:01:36]} 1-0


[Site "https://www.chess.com"]

[Event "Titled Tuesday Blitz February 21 Early 2023"]
[White "Kaganskiy, Gleb"]
[Black "Malyi, Viacheslav"]
[WhiteFideId "4132025"]
[BlackFideId "14123983"]
[WhiteElo "2205"]
[BlackElo "2391"]
[Result "0-1"]
[Round "09"]
[TimeControl "180+2"]
[Date "2023.02.21"]
[WhiteClock "0:01:37"]
[BlackClock "0:01:18"]

1. e4 {[%clk 0:03:00]}  e5 {[%clk 0:02:55]} 2. Nf3 {[%clk 0:03:00]}  Nc6 {[%clk 0:02:56]} 3. Nc3 {[%clk 0:03:01]}  Nf6 {[%clk 0:02:55]} 4. d4 {[%clk 0:03:01]}  exd4 {[%clk 0:02:56]} 5. Nxd4 {[%clk 0:03:02]}  Bc5 {[%clk 0:02:57]} 6. Be3 {[%clk 0:02:59]}  Bb6 {[%clk 0:02:56]} 7. Qd2 {[%clk 0:02:55]}  O-O {[%clk 0:02:56]} 8. O-O-O {[%clk 0:02:54]}  Re8 {[%clk 0:02:57]} 9. f3 {[%clk 0:02:54]}  d5 {[%clk 0:02:57]} 10. exd5 {[%clk 0:02:46]}  Nxd5 {[%clk 0:02:56]} 11. Nxd5 {[%clk 0:02:45]}  Qxd5 {[%clk 0:02:57]} 12. Bf2 {[%clk 0:02:12]}  Nxd4 {[%clk 0:02:39]} 13. Bxd4 {[%clk 0:02:11]}  Qxa2 {[%clk 0:02:37]} 14. b3 {[%clk 0:02:05]}  Bf5 {[%clk 0:02:19]} 15. Qc3 {[%clk 0:01:55]}  Bxd4 {[%clk 0:01:35]} 16. Rxd4 {[%clk 0:01:51]}  Bxc2 {[%clk 0:01:34]} 17. Ra4 {[%clk 0:01:36]}  Qb1+ {[%clk 0:01:18]} 18. Kd2 {[%clk 0:01:37]}  Qd1# {[%clk 0:01:18]} 0-1


[Site "https://www.chess.com"]

[Event "Titled Tuesday Blitz February 21 Early 2023"]
[White "Szyszylo, Rafal"]
[Black "Ibadov, Dashgyn"]
[WhiteFideId "1109626"]
[BlackFideId "24107514"]
[WhiteElo "2091"]
[BlackElo "2391"]
[Result "0-1"]
[Round "09"]
[TimeControl "180+2"]
[Date "2023.02.21"]
[WhiteClock "0:00:01"]
[BlackClock "0:00:09"]

1. e4 {[%clk 0:02:56]}  e5 {[%clk 0:02:59]} 2. Nf3 {[%clk 0:02:55]}  Nc6 {[%clk 0:02:59]} 3. Bb5 {[%clk 0:02:55]}  a6 {[%clk 0:02:59]} 4. Ba4 {[%clk 0:02:53]}  Nf6 {[%clk 0:02:59]} 5. d3 {[%clk 0:02:51]}  b5 {[%clk 0:02:59]} 6. Bb3 {[%clk 0:02:51]}  Bc5 {[%clk 0:02:59]} 7. c3 {[%clk 0:02:51]}  d6 {[%clk 0:02:59]} 8. O-O {[%clk 0:02:48]}  h6 {[%clk 0:02:59]} 9. Nbd2 {[%clk 0:02:46]}  O-O {[%clk 0:02:58]} 10. Re1 {[%clk 0:02:41]}  Bb6 {[%clk 0:02:58]} 11. Nf1 {[%clk 0:02:41]}  Ne7 {[%clk 0:02:58]} 12. Nh4 {[%clk 0:02:39]}  Bg4 {[%clk 0:02:27]} 13. Qc2 {[%clk 0:02:21]}  Kh7 {[%clk 0:02:13]} 14. Ng3 {[%clk 0:02:14]}  Be6 {[%clk 0:01:59]} 15. d4 {[%clk 0:01:54]}  Bxb3 {[%clk 0:01:54]} 16. axb3 {[%clk 0:01:55]}  Ng6 {[%clk 0:01:38]} 17. Nhf5 {[%clk 0:01:23]}  a5 {[%clk 0:01:37]} 18. Qe2 {[%clk 0:00:56]}  Qd7 {[%clk 0:01:29]} 19. Qf3 {[%clk 0:00:54]}  Ng8 {[%clk 0:01:03]} 20. h4 {[%clk 0:00:50]}  Rae8 {[%clk 0:00:50]} 21. d5 {[%clk 0:00:49]}  c6 {[%clk 0:00:47]} 22. c4 {[%clk 0:00:49]}  cxd5 {[%clk 0:00:38]} 23. cxd5 {[%clk 0:00:48]}  N6e7 {[%clk 0:00:30]} 24. h5 {[%clk 0:00:47]}  Nxf5 {[%clk 0:00:29]} 25. Nxf5 {[%clk 0:00:47]}  Ne7 {[%clk 0:00:22]} 26. g4 {[%clk 0:00:31]}  Nxf5 {[%clk 0:00:21]} 27. gxf5 {[%clk 0:00:32]}  Bd8 {[%clk 0:00:18]} 28. Bd2 {[%clk 0:00:28]}  b4 {[%clk 0:00:18]} 29. Kh2 {[%clk 0:00:24]}  Qb5 {[%clk 0:00:17]} 30. Rg1 {[%clk 0:00:23]}  Bf6 {[%clk 0:00:15]} 31. Rac1 {[%clk 0:00:20]}  Rc8 {[%clk 0:00:15]} 32. Qg4 {[%clk 0:00:19]}  Qd3 {[%clk 0:00:12]} 33. Be3 {[%clk 0:00:17]}  Qxb3 {[%clk 0:00:11]} 34. Rxc8 {[%clk 0:00:17]}  Rxc8 {[%clk 0:00:12]} 35. Bc1 {[%clk 0:00:05]}  Rc2 {[%clk 0:00:10]} 36. Bxh6 {[%clk 0:00:04]}  Kxh6 {[%clk 0:00:09]} 37. Kh1 {[%clk 0:00:01]}  Rxf2 {[%clk 0:00:09]} 0-1


[Site "https://www.chess.com"]

[Event "Titled Tuesday Blitz February 21 Early 2023"]
[White "Matveeva, Olga"]
[Black "Cunha, Lucas Aguiar"]
[WhiteFideId "24107018"]
[BlackFideId "2125404"]
[WhiteElo "2128"]
[BlackElo "2309"]
[Result "0-1"]
[Round "09"]
[TimeControl "180+2"]
[Date "2023.02.21"]
[WhiteClock "0:00:01"]
[BlackClock "0:00:21"]

1. d4 {[%clk 0:03:00]}  Nf6 {[%clk 0:02:59]} 2. c4 {[%clk 0:03:00]}  e6 {[%clk 0:02:59]} 3. g3 {[%clk 0:03:00]}  d5 {[%clk 0:02:59]} 4. Nf3 {[%clk 0:02:59]}  dxc4 {[%clk 0:02:58]} 5. Bg2 {[%clk 0:02:59]}  c5 {[%clk 0:02:58]} 6. O-O {[%clk 0:02:57]}  Nc6 {[%clk 0:02:57]} 7. Qa4 {[%clk 0:02:55]}  cxd4 {[%clk 0:02:56]} 8. Nxd4 {[%clk 0:02:52]}  Qxd4 {[%clk 0:02:57]} 9. Bxc6+ {[%clk 0:02:52]}  bxc6 {[%clk 0:02:58]} 10. Qxc6+ {[%clk 0:02:52]}  Qd7 {[%clk 0:02:58]} 11. Qxa8 {[%clk 0:02:50]}  Bc5 {[%clk 0:02:59]} 12. Nc3 {[%clk 0:02:43]}  O-O {[%clk 0:02:58]} 13. Qf3 {[%clk 0:02:35]}  Bb7 {[%clk 0:02:57]} 14. e4 {[%clk 0:02:35]}  Qc7 {[%clk 0:02:46]} 15. Bf4 {[%clk 0:02:29]}  e5 {[%clk 0:02:40]} 16. Bg5 {[%clk 0:02:28]}  Nxe4 {[%clk 0:02:40]} 17. Nxe4 {[%clk 0:02:19]}  f5 {[%clk 0:02:41]} 18. Qc3 {[%clk 0:02:09]}  Bd4 {[%clk 0:02:35]} 19. Qb4 {[%clk 0:01:56]}  Bxe4 {[%clk 0:02:33]} 20. Rac1 {[%clk 0:01:54]}  Rc8 {[%clk 0:02:24]} 21. Be3 {[%clk 0:01:34]}  Ba8 {[%clk 0:02:20]} 22. Bxd4 {[%clk 0:01:24]}  exd4 {[%clk 0:02:21]} 23. b3 {[%clk 0:01:21]}  c3 {[%clk 0:02:12]} 24. Qxd4 {[%clk 0:01:19]}  Qc6 {[%clk 0:02:10]} 25. f3 {[%clk 0:01:15]}  a5 {[%clk 0:02:02]} 26. Rf2 {[%clk 0:01:14]}  h6 {[%clk 0:01:57]} 27. Kg2 {[%clk 0:01:08]}  Kh7 {[%clk 0:01:55]} 28. Qf4 {[%clk 0:01:01]}  Qd5 {[%clk 0:01:49]} 29. Rcc2 {[%clk 0:00:58]}  Qd3 {[%clk 0:01:45]} 30. h4 {[%clk 0:00:42]}  Bd5 {[%clk 0:01:38]} 31. Qc1 {[%clk 0:00:19]}  Rc6 {[%clk 0:01:27]} 32. Qf4 {[%clk 0:00:17]}  Re6 {[%clk 0:01:25]} 33. Qc1 {[%clk 0:00:13]}  Re3 {[%clk 0:01:22]} 34. Qf1 {[%clk 0:00:12]}  Qd4 {[%clk 0:01:16]} 35. Qc1 {[%clk 0:00:10]}  f4 {[%clk 0:01:12]} 36. g4 {[%clk 0:00:08]}  h5 {[%clk 0:01:09]} 37. gxh5 {[%clk 0:00:08]}  Kh6 {[%clk 0:01:09]} 38. Qg1 {[%clk 0:00:07]}  Qf6 {[%clk 0:01:05]} 39. Kf1 {[%clk 0:00:06]}  Qf5 {[%clk 0:00:58]} 40. Qg6+ {[%clk 0:00:05]}  Qxg6 {[%clk 0:00:58]} 41. hxg6 {[%clk 0:00:06]}  Bxf3 {[%clk 0:00:56]} 42. Rc1 {[%clk 0:00:02]}  Kh5 {[%clk 0:00:30]} 43. Rfc2 {[%clk 0:00:02]}  Kg4 {[%clk 0:00:21]} 44. Rxc3 {[%clk 0:00:01]}  Re6 {[%clk 0:00:21]} 0-1


[Site "https://www.chess.com"]

[Event "Titled Tuesday Blitz February 21 Early 2023"]
[White "Eynullayev, Atilla"]
[Black "Petrova, Irina"]
[WhiteFideId "13413570"]
[BlackFideId "14124122"]
[WhiteElo "2281"]
[BlackElo "2108"]
[Result "1-0"]
[Round "09"]
[TimeControl "180+2"]
[Date "2023.02.21"]
[WhiteClock "0:00:31"]
[BlackClock "0:00:28"]

1. d4 {[%clk 0:02:40]}  d6 {[%clk 0:03:00]} 2. c4 {[%clk 0:02:40]}  e5 {[%clk 0:03:00]} 3. Nc3 {[%clk 0:02:36]}  exd4 {[%clk 0:02:59]} 4. Qxd4 {[%clk 0:02:37]}  Nc6 {[%clk 0:02:59]} 5. Qd2 {[%clk 0:02:36]}  Nf6 {[%clk 0:03:00]} 6. e4 {[%clk 0:02:35]}  Be6 {[%clk 0:03:00]} 7. b3 {[%clk 0:02:28]}  a5 {[%clk 0:02:59]} 8. Bd3 {[%clk 0:02:27]}  g6 {[%clk 0:02:59]} 9. Nge2 {[%clk 0:02:25]}  Bg7 {[%clk 0:02:59]} 10. Bb2 {[%clk 0:02:26]}  O-O {[%clk 0:02:59]} 11. O-O {[%clk 0:02:26]}  Nd7 {[%clk 0:02:54]} 12. h3 {[%clk 0:02:12]}  Nc5 {[%clk 0:02:52]} 13. Bc2 {[%clk 0:02:04]}  Re8 {[%clk 0:02:47]} 14. Rae1 {[%clk 0:02:00]}  Qh4 {[%clk 0:02:34]} 15. Bb1 {[%clk 0:01:38]}  a4 {[%clk 0:02:12]} 16. Nb5 {[%clk 0:01:25]}  axb3 {[%clk 0:01:55]} 17. Bxg7 {[%clk 0:01:25]}  bxa2 {[%clk 0:01:49]} 18. Bxa2 {[%clk 0:01:25]}  Kxg7 {[%clk 0:01:40]} 19. Nxc7 {[%clk 0:01:25]}  Nxe4 {[%clk 0:01:34]} 20. Qb2+ {[%clk 0:01:24]}  Qf6 {[%clk 0:01:34]} 21. Nxe8+ {[%clk 0:01:24]}  Rxe8 {[%clk 0:01:31]} 22. Qxb7 {[%clk 0:01:24]}  Ne5 {[%clk 0:01:26]} 23. Qxe4 {[%clk 0:01:19]}  Bxh3 {[%clk 0:01:24]} 24. Qf4 {[%clk 0:00:59]}  Bf5 {[%clk 0:01:12]} 25. Ng3 {[%clk 0:00:50]}  Ra8 {[%clk 0:00:48]} 26. Nxf5+ {[%clk 0:00:46]}  gxf5 {[%clk 0:00:48]} 27. Bb1 {[%clk 0:00:44]}  Rg8 {[%clk 0:00:41]} 28. Qxf5 {[%clk 0:00:43]}  Qh4 {[%clk 0:00:38]} 29. f4 {[%clk 0:00:34]}  Ng4 {[%clk 0:00:31]} 30. Qg5+ {[%clk 0:00:32]}  Qxg5 {[%clk 0:00:30]} 31. fxg5 {[%clk 0:00:33]}  Ne5 {[%clk 0:00:28]} 32. c5 {[%clk 0:00:31]} 1-0


[Site "https://www.chess.com"]

[Event "Titled Tuesday Blitz February 21 Early 2023"]
[White "Aarav Dengla"]
[Black "Melikhov, Evgeny V."]
[WhiteFideId "45059756"]
[BlackFideId "4122046"]
[WhiteElo "2343"]
[BlackElo "2269"]
[Result "0-1"]
[Round "09"]
[TimeControl "180+2"]
[Date "2023.02.21"]
[WhiteClock "0:00:03"]
[BlackClock "0:00:14"]

1. e4 {[%clk 0:02:56]}  e5 {[%clk 0:02:59]} 2. Nf3 {[%clk 0:02:55]}  Nc6 {[%clk 0:02:56]} 3. Bb5 {[%clk 0:02:46]}  a6 {[%clk 0:02:55]} 4. Ba4 {[%clk 0:02:46]}  Nf6 {[%clk 0:02:54]} 5. d3 {[%clk 0:02:45]}  b5 {[%clk 0:02:53]} 6. Bb3 {[%clk 0:02:44]}  Be7 {[%clk 0:02:53]} 7. O-O {[%clk 0:02:42]}  d6 {[%clk 0:02:53]} 8. c3 {[%clk 0:02:39]}  O-O {[%clk 0:02:51]} 9. h3 {[%clk 0:02:38]}  Na5 {[%clk 0:02:51]} 10. Bc2 {[%clk 0:02:37]}  c5 {[%clk 0:02:51]} 11. Re1 {[%clk 0:02:37]}  Bb7 {[%clk 0:02:51]} 12. Nbd2 {[%clk 0:02:37]}  Re8 {[%clk 0:02:50]} 13. Nf1 {[%clk 0:02:37]}  Bf8 {[%clk 0:02:51]} 14. Ng3 {[%clk 0:02:36]}  d5 {[%clk 0:02:50]} 15. exd5 {[%clk 0:02:35]}  Qxd5 {[%clk 0:02:50]} 16. Bg5 {[%clk 0:02:35]}  Nd7 {[%clk 0:02:21]} 17. d4 {[%clk 0:02:07]}  exd4 {[%clk 0:01:59]} 18. Be4 {[%clk 0:01:59]}  Qd6 {[%clk 0:01:42]} 19. cxd4 {[%clk 0:01:58]}  cxd4 {[%clk 0:01:36]} 20. Nxd4 {[%clk 0:01:36]}  Bxe4 {[%clk 0:01:26]} 21. Nxe4 {[%clk 0:01:36]}  Qd5 {[%clk 0:01:19]} 22. Nc2 {[%clk 0:00:59]}  Nb6 {[%clk 0:01:10]} 23. Qf3 {[%clk 0:00:52]}  Rxe4 {[%clk 0:01:07]} 24. Rxe4 {[%clk 0:00:43]}  Qxg5 {[%clk 0:01:07]} 25. Rg4 {[%clk 0:00:43]}  Qd5 {[%clk 0:01:04]} 26. Qf6 {[%clk 0:00:35]}  Qe6 {[%clk 0:00:58]} 27. Qc3 {[%clk 0:00:31]}  Nac4 {[%clk 0:00:56]} 28. b3 {[%clk 0:00:31]}  Qe5 {[%clk 0:00:53]} 29. Nd4 {[%clk 0:00:26]}  Nd6 {[%clk 0:00:49]} 30. Re1 {[%clk 0:00:15]}  Qd5 {[%clk 0:00:48]} 31. Qc2 {[%clk 0:00:04]}  Rc8 {[%clk 0:00:44]} 32. Qd3 {[%clk 0:00:03]}  g6 {[%clk 0:00:35]} 33. Rg3 {[%clk 0:00:04]}  Bg7 {[%clk 0:00:34]} 34. Ne6 {[%clk 0:00:02]}  fxe6 {[%clk 0:00:31]} 35. Qxd5 {[%clk 0:00:01]}  exd5 {[%clk 0:00:30]} 36. Re6 {[%clk 0:00:02]}  Rd8 {[%clk 0:00:29]} 37. Rd3 {[%clk 0:00:02]}  Kf7 {[%clk 0:00:26]} 38. Ree3 {[%clk 0:00:03]}  Nf5 {[%clk 0:00:24]} 39. Re1 {[%clk 0:00:03]}  d4 {[%clk 0:00:24]} 40. g4 {[%clk 0:00:02]}  Nd6 {[%clk 0:00:23]} 41. Rc1 {[%clk 0:00:02]}  Nd5 {[%clk 0:00:21]} 42. Rc5 {[%clk 0:00:01]}  Nf4 {[%clk 0:00:20]} 43. Rd1 {[%clk 0:00:02]}  d3 {[%clk 0:00:19]} 44. Rc6 {[%clk 0:00:02]}  Ne4 {[%clk 0:00:18]} 45. Rxa6 {[%clk 0:00:02]}  d2 {[%clk 0:00:17]} 46. Ra7+ {[%clk 0:00:02]}  Kg8 {[%clk 0:00:17]} 47. Ra5 {[%clk 0:00:02]}  Nc3 {[%clk 0:00:16]} 48. Rxd2 {[%clk 0:00:02]}  Rxd2 {[%clk 0:00:16]} 49. Ra8+ {[%clk 0:00:02]}  Kf7 {[%clk 0:00:16]} 50. a4 {[%clk 0:00:03]}  Bd4 {[%clk 0:00:14]} 0-1


[Site "https://www.chess.com"]

[Event "Titled Tuesday Blitz February 21 Early 2023"]
[White "Zacurdajev, Dmitry"]
[Black "Todev, Simeon"]
[WhiteFideId "4196309"]
[BlackFideId "2925133"]
[WhiteElo "2273"]
[BlackElo "2033"]
[Result "1-0"]
[Round "09"]
[TimeControl "180+2"]
[Date "2023.02.21"]
[WhiteClock "0:00:08"]
[BlackClock "0:00:01"]

1. d4 {[%clk 0:03:00]}  Nf6 {[%clk 0:02:56]} 2. c4 {[%clk 0:03:01]}  d5 {[%clk 0:02:57]} 3. cxd5 {[%clk 0:03:00]}  Nxd5 {[%clk 0:02:58]} 4. e4 {[%clk 0:02:59]}  Nf6 {[%clk 0:02:58]} 5. Nc3 {[%clk 0:03:00]}  c5 {[%clk 0:02:58]} 6. Nf3 {[%clk 0:02:56]}  cxd4 {[%clk 0:02:58]} 7. Qxd4 {[%clk 0:02:55]}  Qxd4 {[%clk 0:02:57]} 8. Nxd4 {[%clk 0:02:56]}  e5 {[%clk 0:02:57]} 9. Ndb5 {[%clk 0:02:54]}  Na6 {[%clk 0:02:57]} 10. Bg5 {[%clk 0:02:46]}  Bb4 {[%clk 0:02:54]} 11. O-O-O {[%clk 0:02:41]}  Bd7 {[%clk 0:02:50]} 12. Bxf6 {[%clk 0:02:33]}  gxf6 {[%clk 0:02:45]} 13. Nd5 {[%clk 0:02:15]}  Bc6 {[%clk 0:02:21]} 14. Nbc7+ {[%clk 0:01:49]}  Nxc7 {[%clk 0:02:19]} 15. Nxc7+ {[%clk 0:01:50]}  Ke7 {[%clk 0:02:20]} 16. Nxa8 {[%clk 0:01:49]}  Rxa8 {[%clk 0:02:21]} 17. f3 {[%clk 0:01:45]}  Rc8 {[%clk 0:02:20]} 18. Kb1 {[%clk 0:01:44]}  Bc5 {[%clk 0:02:17]} 19. Bc4 {[%clk 0:01:41]}  Bd4 {[%clk 0:02:15]} 20. Rc1 {[%clk 0:01:35]}  Rg8 {[%clk 0:02:07]} 21. g4 {[%clk 0:01:28]}  h5 {[%clk 0:02:01]} 22. h3 {[%clk 0:01:28]}  Rh8 {[%clk 0:01:57]} 23. a3 {[%clk 0:01:11]}  a5 {[%clk 0:01:53]} 24. b4 {[%clk 0:01:05]}  axb4 {[%clk 0:01:41]} 25. axb4 {[%clk 0:01:06]}  Ra8 {[%clk 0:01:41]} 26. b5 {[%clk 0:00:57]}  Bd7 {[%clk 0:01:32]} 27. gxh5 {[%clk 0:00:45]}  Rh8 {[%clk 0:01:18]} 28. Bd5 {[%clk 0:00:42]}  Rxh5 {[%clk 0:01:14]} 29. Rc7 {[%clk 0:00:35]}  Kd6 {[%clk 0:01:10]} 30. Rxb7 {[%clk 0:00:34]}  Rh8 {[%clk 0:00:59]} 31. Bxf7 {[%clk 0:00:31]}  Bxh3 {[%clk 0:00:50]} 32. Bd5 {[%clk 0:00:21]}  f5 {[%clk 0:00:36]} 33. Rf7 {[%clk 0:00:17]}  fxe4 {[%clk 0:00:32]} 34. fxe4 {[%clk 0:00:16]}  Kc5 {[%clk 0:00:09]} 35. Bc6 {[%clk 0:00:17]}  Rh5 {[%clk 0:00:04]} 36. Rf3 {[%clk 0:00:17]}  Bg4 {[%clk 0:00:04]} 37. Rxh5 {[%clk 0:00:17]}  Bxh5 {[%clk 0:00:05]} 38. Rf8 {[%clk 0:00:12]}  Be2 {[%clk 0:00:05]} 39. Rb8 {[%clk 0:00:11]}  Bd3+ {[%clk 0:00:06]} 40. Ka2 {[%clk 0:00:11]}  Bc4+ {[%clk 0:00:05]} 41. Ka3 {[%clk 0:00:11]}  Be3 {[%clk 0:00:04]} 42. Ka4 {[%clk 0:00:10]}  Bd2 {[%clk 0:00:04]} 43. Rd8 {[%clk 0:00:10]}  Bc3 {[%clk 0:00:03]} 44. Rc8 {[%clk 0:00:07]}  Kb6 {[%clk 0:00:02]} 45. Be8 {[%clk 0:00:07]}  Bd3 {[%clk 0:00:01]} 46. Rxc3 {[%clk 0:00:07]}  Bxe4 {[%clk 0:00:01]} 47. Kb4 {[%clk 0:00:06]}  Bf5 {[%clk 0:00:01]} 48. Bc6 {[%clk 0:00:07]}  e4 {[%clk 0:00:01]} 49. Re3 {[%clk 0:00:07]}  Be6 {[%clk 0:00:01]} 50. Bxe4 {[%clk 0:00:08]} 1-0


[Site "https://www.chess.com"]

[Event "Titled Tuesday Blitz February 21 Early 2023"]
[White "Matko, Ognjen"]
[Black "Liu, Casper"]
[WhiteFideId "14509717"]
[BlackFideId "1454153"]
[WhiteElo "2295"]
[BlackElo "2278"]
[Result "0-1"]
[Round "09"]
[TimeControl "180+2"]
[Date "2023.02.21"]
[WhiteClock "0:00:17"]
[BlackClock "0:00:03"]

1. e4 {[%clk 0:03:00]}  c5 {[%clk 0:02:58]} 2. Nf3 {[%clk 0:03:00]}  d6 {[%clk 0:02:59]} 3. d4 {[%clk 0:02:59]}  cxd4 {[%clk 0:03:00]} 4. Qxd4 {[%clk 0:02:59]}  Nf6 {[%clk 0:03:01]} 5. Nc3 {[%clk 0:02:58]}  Nc6 {[%clk 0:03:01]} 6. Bb5 {[%clk 0:02:58]}  Bd7 {[%clk 0:03:02]} 7. Bxc6 {[%clk 0:02:57]}  bxc6 {[%clk 0:03:03]} 8. Bg5 {[%clk 0:02:57]}  Qb6 {[%clk 0:03:00]} 9. Qxb6 {[%clk 0:02:51]}  axb6 {[%clk 0:03:01]} 10. e5 {[%clk 0:02:51]}  Ng4 {[%clk 0:02:56]} 11. exd6 {[%clk 0:02:45]}  exd6 {[%clk 0:02:57]} 12. O-O {[%clk 0:02:43]}  f6 {[%clk 0:02:55]} 13. Bf4 {[%clk 0:02:37]}  Kf7 {[%clk 0:02:54]} 14. h3 {[%clk 0:02:36]}  Ne5 {[%clk 0:02:54]} 15. Nd2 {[%clk 0:02:30]}  Be7 {[%clk 0:02:49]} 16. Rad1 {[%clk 0:02:26]}  Bf5 {[%clk 0:02:49]} 17. Bxe5 {[%clk 0:02:12]}  dxe5 {[%clk 0:02:37]} 18. Nc4 {[%clk 0:02:01]}  Rhd8 {[%clk 0:02:13]} 19. Ne3 {[%clk 0:01:54]}  Be6 {[%clk 0:02:10]} 20. a3 {[%clk 0:01:51]}  b5 {[%clk 0:02:10]} 21. g4 {[%clk 0:01:43]}  b4 {[%clk 0:02:08]} 22. axb4 {[%clk 0:01:43]}  Bxb4 {[%clk 0:02:09]} 23. Ne4 {[%clk 0:01:41]}  Bd5 {[%clk 0:01:49]} 24. Ng3 {[%clk 0:01:38]}  Bf3 {[%clk 0:01:39]} 25. Rxd8 {[%clk 0:01:34]}  Rxd8 {[%clk 0:01:40]} 26. c3 {[%clk 0:01:30]}  Bc5 {[%clk 0:01:40]} 27. b4 {[%clk 0:01:28]}  Bb6 {[%clk 0:01:35]} 28. Rc1 {[%clk 0:01:19]}  Rd3 {[%clk 0:01:34]} 29. Ngf1 {[%clk 0:01:16]}  Be2 {[%clk 0:01:32]} 30. c4 {[%clk 0:01:07]}  Bxf1 {[%clk 0:01:31]} 31. Nxf1 {[%clk 0:01:04]}  Rxh3 {[%clk 0:01:30]} 32. c5 {[%clk 0:01:00]}  Bd8 {[%clk 0:01:30]} 33. Ne3 {[%clk 0:00:58]}  Ke6 {[%clk 0:01:04]} 34. Rd1 {[%clk 0:00:52]}  Be7 {[%clk 0:01:04]} 35. Kg2 {[%clk 0:00:51]}  Rh4 {[%clk 0:01:03]} 36. f3 {[%clk 0:00:50]}  g6 {[%clk 0:01:03]} 37. Kg3 {[%clk 0:00:44]}  f5 {[%clk 0:01:02]} 38. Kg2 {[%clk 0:00:40]}  e4 {[%clk 0:00:48]} 39. fxe4 {[%clk 0:00:37]}  f4 {[%clk 0:00:36]} 40. Nc4 {[%clk 0:00:33]}  Rxg4+ {[%clk 0:00:36]} 41. Kf3 {[%clk 0:00:33]}  h5 {[%clk 0:00:36]} 42. Na5 {[%clk 0:00:33]}  g5 {[%clk 0:00:14]} 43. Nxc6 {[%clk 0:00:31]}  Rg3+ {[%clk 0:00:15]} 44. Kf2 {[%clk 0:00:30]}  h4 {[%clk 0:00:15]} 45. Nxe7 {[%clk 0:00:26]}  Kxe7 {[%clk 0:00:15]} 46. c6 {[%clk 0:00:26]}  Rc3 {[%clk 0:00:15]} 47. b5 {[%clk 0:00:26]}  g4 {[%clk 0:00:15]} 48. Rd7+ {[%clk 0:00:25]}  Ke6 {[%clk 0:00:14]} 49. Rh7 {[%clk 0:00:25]}  Rc2+ {[%clk 0:00:14]} 50. Ke1 {[%clk 0:00:25]}  f3 {[%clk 0:00:14]} 51. c7 {[%clk 0:00:22]}  g3 {[%clk 0:00:11]} 52. Rh6+ {[%clk 0:00:21]}  Ke5 {[%clk 0:00:11]} 53. Rc6 {[%clk 0:00:21]}  g2 {[%clk 0:00:03]} 54. Rg6 {[%clk 0:00:16]}  Rxc7 {[%clk 0:00:02]} 55. Rg5+ {[%clk 0:00:16]}  Kf4 {[%clk 0:00:01]} 56. Rxg2 {[%clk 0:00:17]}  fxg2 {[%clk 0:00:02]} 57. Kf2 {[%clk 0:00:17]}  Rc2+ {[%clk 0:00:02]} 58. Kg1 {[%clk 0:00:18]}  Kg3 {[%clk 0:00:02]} 59. b6 {[%clk 0:00:17]}  Rc1# {[%clk 0:00:03]} 0-1


[Site "https://www.chess.com"]

[Event "Titled Tuesday Blitz February 21 Early 2023"]
[White "Fernandez Siles, Luis"]
[Black "Gatterer, Florian"]
[WhiteFideId "2209420"]
[BlackFideId "811688"]
[WhiteElo "2218"]
[BlackElo "2170"]
[Result "0-1"]
[Round "09"]
[TimeControl "180+2"]
[Date "2023.02.21"]
[WhiteClock "0:01:27"]
[BlackClock "0:01:12"]

1. d4 {[%clk 0:03:00]}  d5 {[%clk 0:02:59]} 2. c4 {[%clk 0:03:00]}  c6 {[%clk 0:02:59]} 3. Nc3 {[%clk 0:02:59]}  Nf6 {[%clk 0:02:59]} 4. cxd5 {[%clk 0:02:57]}  cxd5 {[%clk 0:02:58]} 5. Bf4 {[%clk 0:02:57]}  Nc6 {[%clk 0:02:57]} 6. e3 {[%clk 0:02:57]}  Bf5 {[%clk 0:02:56]} 7. Qb3 {[%clk 0:02:56]}  Na5 {[%clk 0:02:55]} 8. Bb5+ {[%clk 0:02:56]}  Bd7 {[%clk 0:02:50]} 9. Qa4 {[%clk 0:02:56]}  Nc6 {[%clk 0:02:42]} 10. Bd3 {[%clk 0:02:50]}  a6 {[%clk 0:02:38]} 11. Qd1 {[%clk 0:02:39]}  Bg4 {[%clk 0:02:37]} 12. Nge2 {[%clk 0:02:39]}  e6 {[%clk 0:02:34]} 13. O-O {[%clk 0:02:38]}  Bd6 {[%clk 0:02:33]} 14. f3 {[%clk 0:02:38]}  Bh5 {[%clk 0:02:30]} 15. Rc1 {[%clk 0:02:39]}  Bg6 {[%clk 0:02:26]} 16. Bxd6 {[%clk 0:02:32]}  Qxd6 {[%clk 0:02:25]} 17. f4 {[%clk 0:02:32]}  O-O {[%clk 0:02:17]} 18. Bxg6 {[%clk 0:02:29]}  hxg6 {[%clk 0:02:14]} 19. Na4 {[%clk 0:02:26]}  Rfc8 {[%clk 0:02:12]} 20. a3 {[%clk 0:02:22]}  Na5 {[%clk 0:02:01]} 21. Nc5 {[%clk 0:01:58]}  Nc4 {[%clk 0:01:41]} 22. Qb3 {[%clk 0:01:35]}  Nd2 {[%clk 0:01:30]} 23. Qxb7 {[%clk 0:01:33]}  Nxf1 {[%clk 0:01:22]} 24. Rxf1 {[%clk 0:01:28]}  Rab8 {[%clk 0:01:17]} 25. Qxa6 {[%clk 0:01:27]}  Qxa6 {[%clk 0:01:12]} 26. Nxa6 {[%clk 0:01:27]}  Rxb2 {[%clk 0:01:12]} 0-1


[Site "https://www.chess.com"]